[Event "74th PGNiG TERMIKA POL-ch Women 2022"]
[Site "Kruszwica"]
[Date "2022.05.10"]
[Round "2.4"]
[White "Kulon, Klaudia"]
[Black "Kiolbasa, Oliwia"]
[Result "1/2-1/2"]
[ECO "C45"]
[WhiteElo "2305"]
[BlackElo "2375"]
[Annotator "TA"]
[PlyCount "76"]
[EventDate "2022.05.09"]
[EventType "tourn"]
[EventCountry "POL"]
[SourceTitle "playchess.com"]
[Source "ChessBase"]
[SourceQuality "1"]
[TimeControl "40/5400+30:1800+30"]

{[%evp 14,76,0,0,18,16,28,45,37,35,51,46,37,31,44,34,46,38,43,31,58,35,44,33,27,11,48,33,65,56,54,36,36,22,41,0,0,-43,-37,-29,-38,-54,-18,-28,-19,-31,-25,-39,-20,-104,-74,-108,-107,-234,-179,-172,-155,-293,-286,-287,0,-200,0,-234,0]} 1. e4 {[%emt 0:00:02]} e5 {[%emt 0:00:19]} 2. Nf3 {[%emt 0:00:06]} Nc6 {[%emt 0:00:12]} 3. d4 {[%emt 0:00:12]} exd4 {[%emt 0:00:43]} 4. Nxd4 {[%emt 0:00:03]} Bc5 {[%emt 0:01:00]} 5. Nb3 {[%emt 0:00:09]} Bb6 {[%emt 0:00:12]} 6. Nc3 {[%emt 0:00:08]} Nf6 {[%emt 0:01:08]} 7. Bg5 {[%emt 0:00:09][%cal Bc1g5,Bg5h4,Bh4g3][%mdl 32]} h6 {[%emt 0:03:18]} 8. Bh4 {[%emt 0:01:46]} d6 {[%emt 0:03:08] C45: Scotch Game.} 9. Bb5 {[%emt 0:00:59][%cal Oe4e5]} Bd7 {[%emt 0:06:58]} 10. Qe2 {[%emt 0:00:21][%cal Oe4e5]} g5 {[%emt 0:10:06] White is slightly better.} 11. Bg3 {[%emt 0:00:07]} Qe7 {[%emt 0:05:45]} 12. O-O-O {[%emt 0:00:30]} O-O-O {[%emt 0:04:49]} 13. a4 {[%emt 0:00:19][%cal Oe4e5,Ba2a4,Ba4a5][%mdl 32] [#]} Rhe8 $146 {[%emt 0:16:53][%cal Rf6e4]} ({Predecessor:} 13... a5 14. Rhe1 Rhe8 15. f3 Nb4 16. Bf2 Bxf2 17. Qxf2 b6 18. Nxa5 Qe5 19. Nc4 Qc5 20. Qxc5 dxc5 21. Bxd7+ Rxd7 {1-0 (34) Predke,A (2595)-Mikaelyan,A (2486) Batumi 2018}) 14. Bxc6 {[%emt 0:05:53]} Bxc6 {[%emt 0:02:14]} (14... bxc6 $2 15. a5 Kb7 16. axb6 $18) 15. a5 {[%emt 0:00:45]} Bc5 {[%emt 0:00:18]} 16. Nxc5 {[%emt 0:01:50]} dxc5 {[%emt 0:00:15]} 17. f3 {[%emt 0:02:55]} Qe6 {[%emt 0:07:32]} 18. Bf2 {[%emt 0:16:58]} Nd7 {[%emt 0:07:54]} 19. g4 {[%emt 0:03:49]} Kb8 {[%emt 0:02:39]} (19... b6 {is interesting.} 20. h4 Ne5 21. hxg5 hxg5 22. Bg3 Rd4) 20. h4 {[%emt 0:04:18]} b6 {[%emt 0:02:31]} 21. hxg5 {[%emt 0:09:58]} (21. Bg3 {looks sharper.} Nf8 22. hxg5 hxg5 23. Qa6) 21... hxg5 {[%emt 0:00:10]} 22. Be3 {[%emt 0:00:29]} f6 {[%emt 0:03:06]} 23. Rh6 {[%emt 0:01:49] Hoping for Bxg5.} Qf7 {[%emt 0:03:19]} 24. Rf1 {[%emt 0:02:30]} Rh8 {[%emt 0:02:00]} 25. Qh2 {[%emt 0:05:44]} Rxh6 {[%emt 0:01:37]} 26. Qxh6 {[%emt 0:00:02]} Ne5 {[%emt 0:00:19][%cal Bd7e5,Be5g6,Bg6e5][%mdl 32]} 27. Kb1 {[%emt 0:04:39]} Kb7 {[%emt 0:03:44]} 28. Bc1 $1 {[%emt 0:01:12]} Ng6 {[%emt 0:01:12] And now ...Rh8 would win.} 29. Qh2 {[%emt 0:01:29]} Qc4 {[%emt 0:01:43]} 30. Qf2 {[%emt 0:05:14]} Ne5 $36 {[%emt 0:01:20][%mdl 2048] Black is more active.} 31. Nd1 {[%emt 0:02:48]} (31. f4 $11 {remains equal.} gxf4 32. Qxf4) 31... Qb5 {[%emt 0:02:50]} 32. Ne3 {[%emt 0:02:57]} Qxa5 {[%emt 0:00:45]} 33. Rh1 {[%emt 0:00:31]} (33. Rd1 $17 Rxd1 34. Nxd1) 33... Qb4 {[%emt 0:04:17]} 34. Rh6 {[%emt 0:00:59]} Rd6 {[%emt 0:00:41]} 35. Nf5 {[%emt 0:01:05]} (35. Rh1 $17) 35... Rd1 $19 {[%emt 0:00:11]} 36. Ne3 {[%emt 0:00:15]} Rd6 {[%emt 0:00:04]} 37. Nf5 $1 {[%emt 0:01:43]} Rd1 {[%emt 0:03:08] ( -> ...Nc4)} 38. Ne3 {[%emt 0:00:14] [#]} Rd6 $2 {Weighted Error Value: White=0.20 (precise) /Black=0.35} (38... Nd3 $1 $19 {[%mdl 512]} 39. cxd3 Bb5 40. Nxd1 Bxd3+ 41. Qc2 Qb3) 1/2-1/2

[Event "74th PGNiG TERMIKA POL-ch Women 2022"]
[Site "Kruszwica"]
[Date "2022.05.10"]
[Round "2.5"]
[White "Socko, Monika"]
[Black "Majdan, Joanna"]
[Result "0-1"]
[ECO "A43"]
[WhiteElo "2384"]
[BlackElo "2325"]
[Annotator "TA"]
[PlyCount "72"]
[EventDate "2022.05.09"]
[EventType "tourn"]
[EventCountry "POL"]
[SourceTitle "playchess.com"]
[Source "ChessBase"]
[SourceQuality "1"]
[TimeControl "40/5400+30:1800+30"]

{[%evp 9,72,0,0,-22,-2,-18,35,33,62,59,66,61,65,65,60,60,109,99,107,107,99,100,105,103,93,93,103,95,100,80,129,136,145,112,111,86,81,69,74,68,66,68,71,57,41,16,11,18,14,-277,-272,-340,-325,-340,-333,-339,-322,-313,-289,-709,-621,-29992,-29993,-29993,-29994]} 1. d4 {[%emt 0:00:04]} c5 {[%emt 0:00:05]} 2. e3 {[%emt 0:00:14]} Nf6 {[%emt 0:01:13]} 3. Nf3 {[%emt 0:01:42]} g6 {[%emt 0:00:06]} 4. Bd3 {[%emt 0:04:09]} Bg7 {[%emt 0:01:44]} 5. O-O {[%emt 0:00:10]} O-O {[%emt 0:01:40]} 6. a3 {[%emt 0:06:26] A48: 1 d4 Nf6 2 Nf3 g6: Torre, London and Colle Systems.} b6 {[%emt 0:05:45] [#]} 7. c4 $146 {[%emt 0:04:35]} ({Predecessor:} 7. b4 cxd4 8. exd4 Bb7 9. Bb2 d6 10. Nbd2 Nbd7 11. Re1 Re8 12. c4 Nf8 13. d5 e5 14. dxe6 Nxe6 {0-1 (40) Kiseleva,A (1962)-Odegov,A (2286) Chess.com INT 2022}) 7... Bb7 {[%emt 0:00:38]} (7... cxd4 $11 8. exd4 d5) 8. d5 $14 {[%emt 0:01:46] White is slightly better.} d6 {[%emt 0:07:27][%cal Ob6b5]} 9. Nc3 {[%emt 0:01:39]} e6 {[%emt 0:02:37][%cal Re6d5]} 10. e4 {[%emt 0:04:33]} Na6 {[%emt 0:00:58]} 11. Bg5 {[%emt 0:02:38]} h6 {[%emt 0:03:20]} 12. Bd2 {[%emt 0:01:29]} e5 {[%emt 0:07:24]} (12... Nc7 $14) 13. Ne1 {[%emt 0:02:01]} Ne8 {[%emt 0:05:20]} 14. f4 {[%emt 0:02:57]} exf4 {[%emt 0:07:47]} 15. Bxf4 {[%emt 0:01:21]} ({But not} 15. Rxf4 Nf6 $14) 15... Nb8 {[%emt 0:02:33][%cal Ba6b8,Bb8d7,Bd7e5][%mdl 32]} 16. Nf3 {[%emt 0:06:29]} Nd7 {[%emt 0:00:54]} 17. Qd2 {[%emt 0:00:19]} Kh7 {[%emt 0:04:24]} 18. Rae1 {[%emt 0:03:12]} Qe7 {[%emt 0:02:49] Against e5} 19. b4 {[%emt 0:06:09]} cxb4 {[%emt 0:08:24]} (19... Ne5 $142) 20. axb4 $16 {[%emt 0:00:13]} Ne5 {[%emt 0:01:25]} 21. Nb5 {[%emt 0:06:00]} a6 {[%emt 0:02:02]} 22. Nbd4 {[%emt 0:05:09]} Rc8 {[%emt 0:00:07]} 23. Rc1 {[%emt 0:01:25]} Nf6 {[%emt 0:02:28][%cal Be8f6,Bf6d7,Bd7c5][%mdl 32]} 24. Bxe5 {[%emt 0:06:03]} dxe5 {[%emt 0:00:12]} 25. Nb3 {[%emt 0:00:01]} Nd7 {[%emt 0:03:10] Prevents c5.} 26. c5 {[%emt 0:02:44]} bxc5 {[%emt 0:05:16]} 27. bxc5 {[%emt 0:00:05]} Nxc5 {[%emt 0:01:38]} 28. Qb4 {[%emt 0:03:20][%cal Rb3c5]} a5 $1 {[%emt 0:01:00]} 29. Nxa5 {[%emt 0:06:06][%mdl 8192] [#] White does not recover from this.} (29. Qa3 $1 $11 {and White is okay.} Rfd8 30. Nxc5) 29... Bxd5 $1 $19 {[%emt 0:03:33][%cal Oe7a7][%mdl 512] aiming for ...Qa7!} 30. Bb1 {[%emt 0:20:55] [#]} (30. Nc4 Bxc4) 30... Qa7 $1 {[%emt 0:01:18]} 31. Kh1 {[%emt 0:00:04] [#]} Nxe4 {[%emt 0:04:53][%mdl 512]} 32. Bxe4 {[%emt 0:01:05]} Rxc1 {[%emt 0:01:26]} 33. Rxc1 {[%emt 0:00:52]} Bxe4 {[%emt 0:00:06]} 34. Nxe5 $2 {[%emt 0:00:18] [#]} (34. Qxe4 Qxa5 35. Ng1) 34... Bxe5 $1 {[%emt 0:01:37] A strong pair of Bishops.} 35. Qxf8 {[%emt 0:00:21] [#]} (35. Qxe4 Qxa5) 35... Qf2 {[%emt 0:00:05][%csl Gf2][%cal Re4g2]} 36. Rg1 {[%emt 0:00:54]} Qf4 {[%emt 0:00:30] Weighted Error Value: White=0.55/Black=0.09 (flawless)} 0-1

[Event "74th PGNiG TERMIKA POL-ch Women 2022"]
[Site "Kruszwica"]
[Date "2022.05.11"]
[Round "3.1"]
[White "Kiolbasa, Oliwia"]
[Black "Socko, Monika"]
[Result "1/2-1/2"]
[ECO "B12"]
[WhiteElo "2375"]
[BlackElo "2384"]
[Annotator "TA"]
[PlyCount "67"]
[EventDate "2022.05.09"]
[EventType "tourn"]
[EventCountry "POL"]
[SourceTitle "playchess.com"]
[Source "ChessBase"]
[SourceQuality "1"]
[TimeControl "40/5400+30:1800+30"]

{[%evp 9,67,3,14,-16,-15,-20,-29,-23,-38,-95,10,-46,-47,-45,-56,-52,-47,-49,-55,-42,-44,-44,-13,-55,-56,-47,-50,-62,-57,-50,-58,-55,-34,-38,-22,-33,0,0,0,0,8,8,11,11,12,11,20,0,0,0,0,0,0,0,0,0,0,0,0,0]} 1. e4 {[%emt 0:00:03]} c6 {[%emt 0:00:05]} 2. d4 {[%emt 0:00:08][%cal Bd2d4,Bd4c5][%mdl 32]} d5 {[%emt 0:00:05]} 3. e5 {[%emt 0:00:10]} c5 {[%emt 0:00:05]} 4. dxc5 {[%emt 0:00:14]} Nc6 {[%emt 0:00:06]} 5. Nf3 {[%emt 0:11:37]} Bg4 {[%emt 0:01:02]} 6. Nbd2 {[%emt 0:04:23][%cal Ob2b4] B12: Caro-Kann: Advance Variation.} e6 {[%emt 0:03:24]} 7. h3 {[%emt 0:03:39]} Bh5 {[%emt 0:08:00]} 8. Nb3 {[%emt 0:11:20] Black has an edge.} Bxc5 {[%emt 0:04:23]} ({Much less strong is} 8... Bxf3 9. Qxf3 Nxe5 10. Bb5+ Nc6 11. O-O $14) 9. Bd3 {[%emt 0:19:34]} (9. Nxc5 $15 Qa5+ 10. c3 Qxc5 11. Be3 Bxf3 12. gxf3 (12. Bxc5 Bxd1 13. Rxd1 Nxe5 $11) (12. Qxf3 Qa5 $11)) 9... Bb6 {[%emt 0:07:52]} (9... Bxf3 $17 10. gxf3 {[#]} Nxe5 $1 11. Nxc5 (11. Bb5+ Kf8 $17) 11... Qa5+ 12. c3 Qxc5) 10. Bf4 {[%emt 0:02:59]} ({White should try} 10. g4 $1 $11 Bg6 11. Bxg6 fxg6 12. a4) 10... Nge7 $15 {[%emt 0:01:31] [#]} 11. Bh2 $146 {[%emt 0:07:54]} ({Predecessor:} 11. Qe2 Ng6 12. Bh2 Bxf3 13. gxf3 Qg5 14. Rg1 Qh5 15. f4 Qxe2+ 16. Kxe2 O-O 17. c3 {0-1 (65) Deegens,V (2323)-Tiggelman,R (2200) Vlissingen 2003}) 11... Bxf3 {[%emt 0:07:35]} 12. Qxf3 {[%emt 0:00:45]} Ng6 {[%emt 0:00:33]} 13. Bxg6 {[%emt 0:03:52]} hxg6 {[%emt 0:00:21]} 14. O-O {[%emt 0:00:03]} Qg5 {[%emt 0:05:41]} 15. Rfe1 {[%emt 0:03:12]} O-O {[%emt 0:06:47][%cal Bh8f8,Bf8d8,Bd8d5][%mdl 32]} 16. Re2 {[%emt 0:05:37]} Qf5 {[%emt 0:05:47]} 17. Qxf5 {[%emt 0:02:52]} gxf5 {[%emt 0:00:05]} 18. c3 {[%emt 0:01:09]} Rfd8 {[%emt 0:03:11]} 19. Rd1 {[%emt 0:02:12]} a5 {[%emt 0:00:46]} 20. a4 {[%emt 0:04:00]} d4 {[%emt 0:07:24]} 21. cxd4 {[%emt 0:00:46]} Rd5 {[%emt 0:02:00]} 22. Red2 {[%emt 0:06:24]} Rad8 {[%emt 0:00:07][%cal Rc6d4]} 23. Bf4 {[%emt 0:00:55] The position is equal.} Nxd4 {[%emt 0:10:38]} 24. Nxd4 {[%emt 0:00:34]} Bxd4 {[%emt 0:00:23]} 25. b3 {[%emt 0:01:31]} Kf8 {[%emt 0:06:36]} 26. Kf1 {[%emt 0:00:25]} R8d7 {[%emt 0:00:03]} 27. Rd3 {[%emt 0:01:35]} Ke8 {[%emt 0:02:13]} 28. Ke2 {[%emt 0:03:26]} Kd8 {[%emt 0:02:15]} 29. Bg5+ {[%emt 0:00:29]} Kc7 {[%emt 0:00:05]} 30. f4 {[%emt 0:00:35]} Kc6 {[%emt 0:00:39]} 31. Bh4 {[%emt 0:00:30]} b6 {[%emt 0:05:36]} 32. Be1 {[%emt 0:00:43]} Rd8 {[%emt 0:03:50]} 33. Bh4 {[%emt 0:00:33]} R8d7 {[%emt 0:00:15]} 34. Be1 {[%emt 0:00:04] Weighted Error Value: White=0.10 (very precise) /Black=0.11 (very precise)} 1/2-1/2

[Event "74th PGNiG TERMIKA POL-ch Women 2022"]
[Site "Kruszwica"]
[Date "2022.05.11"]
[Round "3.2"]
[White "Majdan, Joanna"]
[Black "Cyfka, Karina"]
[Result "1/2-1/2"]
[ECO "C48"]
[WhiteElo "2325"]
[BlackElo "2404"]
[Annotator "TA"]
[PlyCount "77"]
[EventDate "2022.05.09"]
[EventType "tourn"]
[EventCountry "POL"]
[SourceTitle "playchess.com"]
[Source "ChessBase"]
[SourceQuality "1"]
[TimeControl "40/5400+30:1800+30"]

{[%evp 11,77,0,0,0,0,0,0,0,0,0,0,0,0,0,20,19,19,15,19,0,46,31,29,0,0,0,0,0,0,-10,-18,-24,-24,-24,-24,-24,-24,-24,-24,-31,-23,-79,-31,-31,-31,-31,-31,-31,-31,-31,-31,-31,-31,-30,-30,-30,-30,-30,0,0,0,0,0,0,0,0,0,-8]} 1. e4 {[%emt 0:00:03]} e5 {[%emt 0:00:05]} 2. Nf3 {[%emt 0:00:04]} Nc6 {[%emt 0:00:05]} 3. Nc3 {[%emt 0:00:05]} Nf6 {[%emt 0:00:05]} 4. Bb5 {[%emt 0:00:06]} Nd4 {[%emt 0:00:10]} 5. Bc4 {[%emt 0:00:10]} Bc5 {[%emt 0:00:24]} 6. d3 {[%emt 0:00:58]} d6 {[%emt 0:00:29]} (6... O-O {seems wilder.} 7. Nxe5 d6 8. Nxf7 Rxf7 9. Bxf7+ Kxf7 10. Bg5 Ne6) 7. Na4 {[%emt 0:02:21] C48: Four Knights: 4 Bb5, replies other than 4...Bb4.} b5 {[%emt 0:09:28]} 8. Nxd4 {[%emt 0:00:18]} bxc4 {[%emt 0:07:21]} 9. Nf5 {[%emt 0:00:05]} Bxf5 {[%emt 0:29:10]} 10. exf5 {[%emt 0:00:06]} cxd3 {[%emt 0:06:05]} 11. Nxc5 {[%emt 0:00:10]} dxc5 {[%emt 0:02:28]} 12. cxd3 {[%emt 0:00:29]} Qd5 {[%emt 0:01:00]} 13. O-O {[%emt 0:00:38]} O-O {[%emt 0:00:17][%cal Bh8f8,Bf8b8,Bb8b4][%mdl 32]} 14. Bg5 {[%emt 0:02:31] [#]} Nd7 $146 {[%emt 0:08:01]} ({Predecessor:} 14... Rad8 15. Qa4 Qxd3 16. Qxa7 Qxf5 17. Bxf6 Qxf6 18. Qxc5 Rd2 19. b4 Rfd8 20. a4 e4 {1-0 (37) Willow,J (2302)-Miller,D (2164) Stevenage 2019}) 15. Qg4 {[%emt 0:15:42] [#] Strongly threatening Bh6.} f6 {[%emt 0:01:42]} (15... Rfb8 $11) 16. Be3 {[%emt 0:05:13]} Rfb8 {[%emt 0:03:53]} 17. b3 {[%emt 0:13:26]} Rb4 {[%emt 0:02:16] Prevents Qe4.} (17... Qxd3 $2 18. Rfd1 h5 19. Qf3 $18) 18. Qf3 {[%emt 0:01:20]} Qxf3 {[%emt 0:00:22]} 19. gxf3 {[%emt 0:00:03]} a5 {[%emt 0:01:21]} 20. Rac1 {[%emt 0:01:19]} a4 {[%emt 0:04:50]} 21. Bxc5 {[%emt 0:02:08]} (21. bxa4 {with more complications.} Raxa4 22. Bxc5 Nxc5 23. Rxc5 Rf4 24. Rxc7 Rxf5 25. Kh1) 21... Nxc5 {[%emt 0:00:35]} 22. Rxc5 {[%emt 0:00:05]} axb3 {[%emt 0:00:08]} 23. axb3 {[%emt 0:00:06]} Rxb3 {[%emt 0:01:39]} 24. Rxc7 {[%emt 0:01:08]} Rxd3 $11 {[%emt 0:00:27][%mdl 4096] Endgame KRR-KRR} 25. Rb1 {[%emt 0:09:06]} Kh8 {[%emt 0:08:08]} 26. Rbc1 {[%emt 0:08:36] [#]} (26. Ra7 $11 Rg8 27. f4) 26... h6 {[%emt 0:00:32]} (26... h5 $1 $17 27. Kg2 Ra2) 27. f4 {[%emt 0:11:27]} exf4 {[%emt 0:00:33]} 28. Rc8+ $1 {[%emt 0:00:07]} Rxc8 {[%emt 0:00:58]} 29. Rxc8+ $15 {[%emt 0:00:05] KR-KR} Kh7 {[%emt 0:00:02] Hoping for ...Rd5.} 30. Rc4 {[%emt 0:00:36]} f3 {[%emt 0:01:35][%cal Rd3d1]} 31. h3 {[%emt 0:00:35]} h5 {[%emt 0:04:05]} 32. Kh2 {[%emt 0:01:30]} Kh6 {[%emt 0:04:10]} 33. h4 {[%emt 0:01:49]} Rd5 {[%emt 0:00:46]} 34. Rf4 $1 {[%emt 0:00:06]} g5 {[%emt 0:00:08]} 35. fxg6 $1 {[%emt 0:00:25] The position is equal.} Kxg6 {[%emt 0:00:04]} 36. Kg3 {[%emt 0:03:43]} Rd3 {[%emt 0:00:33]} 37. Ra4 {[%emt 0:00:25]} Rd1 {[%emt 0:01:17]} 38. Kxf3 {[%emt 0:00:54]} Rd3+ {[%emt 0:00:11]} 39. Ke4 {Weighted Error Value: White=0.06 (flawless) /Black=0.06 (flawless)} 1/2-1/2

[Event "74th PGNiG TERMIKA POL-ch Women 2022"]
[Site "Kruszwica"]
[Date "2022.05.11"]
[Round "3.3"]
[White "Antolak, Julia"]
[Black "Malicka, Maria"]
[Result "1/2-1/2"]
[ECO "C92"]
[WhiteElo "2371"]
[BlackElo "2377"]
[Annotator "TA"]
[PlyCount "30"]
[EventDate "2022.05.09"]
[EventType "tourn"]
[EventCountry "POL"]
[SourceTitle "playchess.com"]
[Source "ChessBase"]
[SourceQuality "1"]
[TimeControl "40/5400+30:1800+30"]

{[%evp 29,30,0,35]} 1. e4 {[%emt 0:00:03]} e5 {[%emt 0:00:02]} 2. Nf3 {[%emt 0:00:10]} Nc6 {[%emt 0:00:03]} 3. Bb5 {[%emt 0:00:20]} a6 {[%emt 0:00:05]} 4. Ba4 {[%emt 0:00:04]} Nf6 {[%emt 0:00:05]} 5. O-O {[%emt 0:00:14]} Be7 {[%emt 0:00:05]} 6. Re1 {[%emt 0:00:09]} b5 {[%emt 0:00:11]} 7. Bb3 {[%emt 0:00:03]} d6 {[%emt 0:00:12]} 8. c3 {[%emt 0:00:06]} O-O {[%emt 0:00:11]} 9. h3 {[%emt 0:00:02]} Bb7 {[%emt 0:00:07]} 10. d4 {[%emt 0:00:14]} Re8 {[%emt 0:00:06]} 11. Ng5 {[%emt 0:01:01]} Rf8 {[%emt 0:00:07]} 12. Nf3 {[%emt 0:00:01]} Re8 {[%emt 0:00:04]} 13. Ng5 {[%emt 0:15:59]} Rf8 {[%emt 0:00:07]} 14. Nf3 {[%emt 0:00:04]} Re8 {[%emt 0:00:05] [#] 14...h6 is a critical line.} 15. Ng5 $146 {[%emt 0:00:22]} ({Predecessor:} 15. Nbd2 Bf8 16. a4 exd4 17. cxd4 h6 18. Bc2 Nb4 19. Bb1 c5 20. d5 Nd7 21. Ra3 c4 22. Nd4 Qf6 23. N2f3 Nc5 24. b3 Nbd3 25. Bxd3 Nxd3 26. Re3 b4 27. Ra1 Ne5 28. Nxe5 dxe5 29. Nf5 c3 30. Rf3 Qd8 31. Nxh6+ gxh6 32. Rg3+ Kh7 33. Qg4 {1-0 (31) So,W (2772)-Le,Q (2709) chess24.com INT 2021}) 15... Rf8 {[%emt 0:00:05]} 1/2-1/2

[Event "74th PGNiG TERMIKA POL-ch Women 2022"]
[Site "Kruszwica"]
[Date "2022.05.11"]
[Round "3.4"]
[White "Zawadzka, Jolanta"]
[Black "Rudzinska, Michalina"]
[Result "0-1"]
[ECO "B15"]
[WhiteElo "2409"]
[BlackElo "2236"]
[Annotator "TA"]
[PlyCount "120"]
[EventDate "2022.05.09"]
[EventType "tourn"]
[EventCountry "POL"]
[SourceTitle "playchess.com"]
[Source "ChessBase"]
[SourceQuality "1"]
[TimeControl "40/5400+30:1800+30"]

{[%evp 16,120,23,14,34,43,36,17,36,30,50,39,58,25,36,10,8,5,44,37,53,53,53,54,58,23,8,-19,-34,-25,-20,-22,-27,-120,-117,-105,-105,-105,-113,-117,-117,-100,-107,-238,-191,-261,-186,-225,-137,-153,-137,-137,-137,-137,-136,-129,-129,-189,-178,-186,-186,-172,-172,-220,-187,-839,-830,-759,-721,-679,-642,-862,-811,-29973,-29974,-29974,-29975,-29975,-29955,-29962,-29963,-29961,-29952,-9697,-6072,-12798,-11342,-4552,-3490,-2603,-2985,-2296,-1887,-1585,-1481,-2085,-2380,-5373,-5285,-29977,-29978,-29978,-29977,-29982,-29983,-29983,-29984]} 1. e4 {[%emt 0:00:03]} c6 {[%emt 0:00:07]} 2. d4 {[%emt 0:00:30]} d5 {[%emt 0:00:08]} 3. Nd2 {[%emt 0:00:07]} dxe4 {[%emt 0:00:07]} 4. Nxe4 {[%emt 0:00:03]} Nf6 {[%emt 0:00:10]} 5. Nxf6+ {[%emt 0:00:06]} exf6 {[%emt 0:00:08]} 6. c3 {[%emt 0:00:25]} Bd6 {[%emt 0:00:09]} 7. Bd3 {[%emt 0:00:30]} O-O {[%emt 0:00:12]} 8. Qc2 {[%emt 0:03:15]} Re8+ {[%emt 0:00:16]} 9. Be3 {[%emt 0:00:46] [#]} Bf4 $146 {[%emt 0:00:24] B15: Caro-Kann: 3 Nc3: 3...g6 and 3...dxe4 4 Nxe4 Nf6 5 Nxf6+ exf6.} ({Predecessor:} 9... h5 10. Ne2 Nd7 11. O-O h4 12. h3 Nf8 13. Rfe1 Be6 14. Bf4 Rc8 15. Rad1 Qc7 16. Bxd6 Qxd6 17. c4 {½-½ (34) Anand,V (2751)-Asadli,V (2579) Baku 2021}) 10. Bxh7+ {[%emt 0:10:34]} Kf8 {[%emt 0:00:08]} 11. Bd3 {[%emt 0:01:23]} Bxe3 {[%emt 0:01:05] The position is equal.} 12. fxe3 {[%emt 0:00:04]} Rxe3+ {[%emt 0:02:21]} 13. Kf2 {[%emt 0:00:57]} Re7 {[%emt 0:08:11][%cal Oc6c5]} 14. Nf3 {[%emt 0:01:43]} Bg4 {[%emt 0:02:03]} 15. Be4 {[%emt 0:05:27]} Qd6 {[%emt 0:12:35]} 16. Rae1 {[%emt 0:13:14]} Kg8 {[%emt 0:11:32]} 17. Bh7+ {[%emt 0:04:49]} Kf8 {[%emt 0:00:14]} 18. Rxe7 {[%emt 0:00:32]} Qxe7 {[%emt 0:00:08]} 19. Re1 {[%emt 0:00:13]} Qd7 {[%emt 0:11:12]} 20. Nh4 {[%emt 0:11:38][%cal Oh4g6] Threatens to win with Ng6+!} Na6 {[%emt 0:03:53][%cal Bb8a6,Ba6c5,Bc5d3][%mdl 32]} 21. Qb3 {[%emt 0:20:56][%cal Oh4g6] Intending Ng6+! and mate.} g5 $1 {[%emt 0:11:56]} 22. Nf3 {[%emt 0:09:26]} Bxf3 {[%emt 0:00:24]} 23. Kxf3 {[%emt 0:00:10]} Kg7 $36 {[%emt 0:00:39][%mdl 2048] Black has good play.} 24. Bd3 {[%emt 0:01:49] [#]} (24. Bc2 $11) 24... Nc5 $1 $17 {[%emt 0:02:33][%mdl 512]} 25. Qc2 {[%emt 0:01:02]} (25. Qd1 Qd6) 25... Nxd3 {[%emt 0:01:16]} 26. Qxd3 {[%emt 0:00:04][%cal Oh2h4][%mdl 4096] Endgame KQR-KQR} Rh8 {[%emt 0:02:49]} 27. h3 {[%emt 0:01:16]} Qd5+ {[%emt 0:00:28]} 28. Kg3 {[%emt 0:01:55]} Qxa2 {[%emt 0:01:53]} 29. c4 {[%emt 0:01:33] This move loses the game for White.} (29. Re2 $17) 29... Rh4 {[%emt 0:03:59]} 30. b3 {[%emt 0:03:12]} (30. Re2 $142) 30... Rf4 {[%emt 0:06:12] ...Qf2+ is the strong threat.} 31. Qe3 {[%emt 0:03:52] Prevents Qf2+.} Qa5 {[%emt 0:01:09] Strongly threatening ...Qc7.} 32. Kh2 {[%emt 0:00:40] [#]} Rxd4 $3 {[%emt 0:06:51][%mdl 512]} 33. Qxd4 {[%emt 0:00:11]} Qxe1 {[%emt 0:00:05]} 34. Qxa7 {[%emt 0:00:04] KQ-KQ} Qb4 {[%emt 0:01:23] Black is more active.} 35. Qe3 {[%emt 0:00:33]} Qd6+ {[%emt 0:00:32]} 36. g3 {[%emt 0:00:44]} (36. Kg1 $17 {keeps fighting.}) 36... Kg6 {[%emt 0:02:13]} 37. Kg2 {[%emt 0:00:41]} Qe5 {[%emt 0:02:48]} 38. Qd3+ {[%emt 0:01:47]} f5 {[%emt 0:00:25]} 39. Kf3 {[%emt 0:01:00] Prevents Qe4+.} (39. Kf2 $142) 39... c5 {[%emt 0:02:01]} 40. Qb1 $2 {[%emt 0:00:00]} (40. Kf2) 40... Qc3+ $19 {[%emt 0:00:00]} 41. Kg2 {[%emt 0:04:25]} Qd2+ {[%emt 0:08:36]} 42. Kf3 {[%emt 0:01:02]} Qh2 {[%emt 0:02:03]} 43. b4 {[%emt 0:13:29]} Qxh3 {[%emt 0:03:28] Hoping for ...Qg4+.} 44. bxc5 {[%emt 0:00:06]} g4+ {[%emt 0:00:31]} 45. Kf4 {[%emt 0:00:48]} Qh6+ {[%emt 0:00:34]} 46. Ke5 {[%emt 0:00:03]} Qe3+ {[%emt 0:00:20]} 47. Kd5 {[%emt 0:01:50]} Qxg3 {[%emt 0:00:23]} 48. Qb6+ {[%emt 0:00:19]} f6 {[%emt 0:00:44][%csl Gf6][%cal Rg3e5]} 49. Ke6 {[%emt 0:00:37]} Qf3 {[%emt 0:00:57]} 50. Qd6 {[%emt 0:05:26]} Qe4+ {[%emt 0:01:26]} 51. Kd7 {[%emt 0:00:04]} Qxc4 {[%emt 0:01:22]} 52. Kc8 {[%emt 0:00:33]} Qe4 {[%emt 0:06:54] And now ...f4 would win.} 53. Qf8 {[%emt 0:00:41]} Qd5 {[%emt 0:03:15]} 54. Qd6 {[%emt 0:00:39]} Qc6+ {[%emt 0:00:35]} 55. Kb8 {[%emt 0:00:04]} Kg5 {[%emt 0:01:16]} 56. Qe7 {[%emt 0:02:35]} f4 {[%emt 0:01:04][%cal Bf5f4,Bf4f3][%mdl 32] ( -> ...f3)} 57. Qg7+ {[%emt 0:00:31]} Kh4 {[%emt 0:00:08] Black mates.} 58. Qh7+ {[%emt 0:00:03]} Kg3 {[%emt 0:00:06]} 59. Qd3+ {[%emt 0:00:57]} f3 {[%emt 0:00:21]} 60. Qe3 {[%emt 0:01:02]} Kg2 {[%emt 0:00:19] Weighted Error Value: White=0.56/Black=0.24 (precise)} 0-1